[Event "Titled Tuesday Blitz April 4 Late 2023"]
[White "Bakalchuk, Johnatan"]
[Black "Kamsky, Gata"]
[WhiteFideId "2810301"]
[BlackFideId "2000024"]
[WhiteElo "2450"]
[BlackElo "2660"]
[Result "1-0"]
[Round "06"]
[TimeControl "180+2"]
[Date "2023.04.04"]
[WhiteClock "0:00:01"]
[BlackClock "0:00:01"]

1. e4 {[%clk 0:03:00]}  g6 {[%clk 0:02:54]} 2. d4 {[%clk 0:03:00]}  Bg7 {[%clk 0:02:53]} 3. Nc3 {[%clk 0:03:01]}  d6 {[%clk 0:02:53]} 4. Be3 {[%clk 0:03:01]}  a6 {[%clk 0:02:53]} 5. h4 {[%clk 0:03:02]}  h6 {[%clk 0:02:52]} 6. Qd2 {[%clk 0:02:57]}  b5 {[%clk 0:02:50]} 7. f4 {[%clk 0:02:56]}  h5 {[%clk 0:02:49]} 8. Nf3 {[%clk 0:02:56]}  Nh6 {[%clk 0:02:47]} 9. Bd3 {[%clk 0:02:55]}  e6 {[%clk 0:02:44]} 10. O-O-O {[%clk 0:02:54]}  Nc6 {[%clk 0:02:37]} 11. d5 {[%clk 0:02:50]}  b4 {[%clk 0:02:16]} 12. Ne2 {[%clk 0:02:45]}  exd5 {[%clk 0:02:15]} 13. exd5 {[%clk 0:02:46]}  Ne7 {[%clk 0:02:06]} 14. Bd4 {[%clk 0:02:44]}  O-O {[%clk 0:02:00]} 15. Be4 {[%clk 0:01:28]}  a5 {[%clk 0:01:49]} 16. Ng5 {[%clk 0:01:24]}  Bg4 {[%clk 0:01:31]} 17. Rde1 {[%clk 0:01:22]}  Nef5 {[%clk 0:01:28]} 18. Bxg7 {[%clk 0:01:20]}  Kxg7 {[%clk 0:01:25]} 19. Nd4 {[%clk 0:01:11]}  Qf6 {[%clk 0:01:15]} 20. Nb5 {[%clk 0:00:46]}  Rab8 {[%clk 0:01:08]} 21. Bd3 {[%clk 0:00:46]}  Nd4 {[%clk 0:00:55]} 22. Ne4 {[%clk 0:00:42]}  Qf5 {[%clk 0:00:44]} 23. Nxd4 {[%clk 0:00:39]}  Qxd5 {[%clk 0:00:45]} 24. Nb3 {[%clk 0:00:13]}  a4 {[%clk 0:00:43]} 25. c4 {[%clk 0:00:13]}  bxc3 {[%clk 0:00:16]} 26. Nxc3 {[%clk 0:00:08]}  Qa8 {[%clk 0:00:14]} 27. Nd4 {[%clk 0:00:07]}  a3 {[%clk 0:00:14]} 28. b3 {[%clk 0:00:07]}  c5 {[%clk 0:00:13]} 29. Be4 {[%clk 0:00:06]}  Qa5 {[%clk 0:00:11]} 30. Nc6 {[%clk 0:00:06]}  Qc7 {[%clk 0:00:08]} 31. Nxb8 {[%clk 0:00:06]}  Qxb8 {[%clk 0:00:08]} 32. Nd5 {[%clk 0:00:05]}  Be6 {[%clk 0:00:07]} 33. Qc3+ {[%clk 0:00:06]}  f6 {[%clk 0:00:07]} 34. Bf3 {[%clk 0:00:06]}  Bf7 {[%clk 0:00:04]} 35. Re7 {[%clk 0:00:06]}  Ng8 {[%clk 0:00:03]} 36. Re3 {[%clk 0:00:05]}  Qd8 {[%clk 0:00:02]} 37. Rd1 {[%clk 0:00:06]}  Re8 {[%clk 0:00:02]} 38. Rxe8 {[%clk 0:00:06]}  Qxe8 {[%clk 0:00:03]} 39. Re1 {[%clk 0:00:06]}  Qd7 {[%clk 0:00:02]} 40. Qd3 {[%clk 0:00:03]}  Qd8 {[%clk 0:00:02]} 41. Nc3 {[%clk 0:00:03]}  Qa5 {[%clk 0:00:01]} 42. Qd2 {[%clk 0:00:01]} 1-0


[Site "https://www.chess.com"]

[Event "Titled Tuesday Blitz April 4 Late 2023"]
[White "Rodshtein, Maxim"]
[Black "Melkumyan, Hrant"]
[WhiteFideId "2806851"]
[BlackFideId "13302485"]
[WhiteElo "2555"]
[BlackElo "2604"]
[Result "1-0"]
[Round "06"]
[TimeControl "180+2"]
[Date "2023.04.04"]
[WhiteClock "0:00:31"]
[BlackClock "0:00:24"]

1. Nf3 {[%clk 0:03:00]}  c5 {[%clk 0:02:55]} 2. e4 {[%clk 0:03:00]}  Nc6 {[%clk 0:02:55]} 3. Nc3 {[%clk 0:02:59]}  e5 {[%clk 0:02:54]} 4. Bc4 {[%clk 0:02:59]}  Be7 {[%clk 0:02:54]} 5. d3 {[%clk 0:02:59]}  d6 {[%clk 0:02:55]} 6. Nd2 {[%clk 0:02:58]}  Nf6 {[%clk 0:02:54]} 7. Nf1 {[%clk 0:02:56]}  Bg4 {[%clk 0:02:54]} 8. f3 {[%clk 0:02:55]}  Be6 {[%clk 0:02:55]} 9. Ne3 {[%clk 0:02:55]}  O-O {[%clk 0:02:55]} 10. a4 {[%clk 0:02:52]}  Nd7 {[%clk 0:02:54]} 11. Ncd5 {[%clk 0:02:49]}  Bg5 {[%clk 0:02:52]} 12. c3 {[%clk 0:02:47]}  a6 {[%clk 0:02:46]} 13. O-O {[%clk 0:02:43]}  Rb8 {[%clk 0:02:46]} 14. f4 {[%clk 0:02:29]}  exf4 {[%clk 0:02:44]} 15. Nxf4 {[%clk 0:02:30]}  Bxf4 {[%clk 0:02:38]} 16. Rxf4 {[%clk 0:02:31]}  Nde5 {[%clk 0:02:38]} 17. Bd5 {[%clk 0:02:23]}  Ne7 {[%clk 0:02:32]} 18. Bxe6 {[%clk 0:01:52]}  fxe6 {[%clk 0:02:33]} 19. Rxf8+ {[%clk 0:01:52]}  Qxf8 {[%clk 0:02:33]} 20. d4 {[%clk 0:01:49]}  cxd4 {[%clk 0:02:31]} 21. cxd4 {[%clk 0:01:50]}  N5g6 {[%clk 0:02:26]} 22. Qg4 {[%clk 0:01:41]}  Qc8 {[%clk 0:02:17]} 23. Bd2 {[%clk 0:01:36]}  Qd7 {[%clk 0:02:13]} 24. d5 {[%clk 0:01:28]}  Nf8 {[%clk 0:02:02]} 25. Rf1 {[%clk 0:01:05]}  Neg6 {[%clk 0:02:02]} 26. Bc3 {[%clk 0:00:58]}  exd5 {[%clk 0:01:52]} 27. Nf5 {[%clk 0:00:53]}  Re8 {[%clk 0:01:25]} 28. Nh6+ {[%clk 0:00:44]}  Kh8 {[%clk 0:01:16]} 29. Rf7 {[%clk 0:00:43]}  Qxf7 {[%clk 0:00:30]} 30. Nxf7+ {[%clk 0:00:42]}  Kg8 {[%clk 0:00:31]} 31. Nxd6 {[%clk 0:00:41]}  Re6 {[%clk 0:00:31]} 32. e5 {[%clk 0:00:32]}  Nxe5 {[%clk 0:00:25]} 33. Bxe5 {[%clk 0:00:32]}  Rxe5 {[%clk 0:00:26]} 34. Qf4 {[%clk 0:00:31]}  Re7 {[%clk 0:00:25]} 35. Nf5 {[%clk 0:00:31]}  Rd7 {[%clk 0:00:24]} 36. Qe5 {[%clk 0:00:31]} 1-0


[Site "https://www.chess.com"]

[Event "Titled Tuesday Blitz April 4 Late 2023"]
[White "Kravtsiv, Martyn"]
[Black "Tsvetkov, Andrey"]
[WhiteFideId "14113147"]
[BlackFideId "34139360"]
[WhiteElo "2695"]
[BlackElo "2319"]
[Result "1-0"]
[Round "06"]
[TimeControl "180+2"]
[Date "2023.04.04"]
[WhiteClock "0:00:51"]
[BlackClock "0:00:02"]

1. e4 {[%clk 0:03:00]}  c5 {[%clk 0:02:57]} 2. Nf3 {[%clk 0:03:00]}  d6 {[%clk 0:02:57]} 3. Bb5+ {[%clk 0:02:59]}  Nd7 {[%clk 0:02:57]} 4. d4 {[%clk 0:02:58]}  cxd4 {[%clk 0:02:57]} 5. Qxd4 {[%clk 0:02:59]}  a6 {[%clk 0:02:57]} 6. Bxd7+ {[%clk 0:02:58]}  Bxd7 {[%clk 0:02:58]} 7. O-O {[%clk 0:02:58]}  e5 {[%clk 0:02:57]} 8. Qd3 {[%clk 0:02:57]}  Rc8 {[%clk 0:02:53]} 9. c4 {[%clk 0:02:57]}  b5 {[%clk 0:02:53]} 10. Na3 {[%clk 0:02:57]}  Qb6 {[%clk 0:02:47]} 11. cxb5 {[%clk 0:02:57]}  axb5 {[%clk 0:02:45]} 12. Bd2 {[%clk 0:02:56]}  Nf6 {[%clk 0:02:42]} 13. Rac1 {[%clk 0:02:55]}  Rxc1 {[%clk 0:02:35]} 14. Rxc1 {[%clk 0:02:54]}  Be7 {[%clk 0:02:36]} 15. Bb4 {[%clk 0:02:54]}  h6 {[%clk 0:01:06]} 16. h3 {[%clk 0:02:46]}  g5 {[%clk 0:01:05]} 17. Rd1 {[%clk 0:02:16]}  g4 {[%clk 0:01:00]} 18. hxg4 {[%clk 0:02:11]}  Nxg4 {[%clk 0:00:55]} 19. Rd2 {[%clk 0:02:12]}  Nf6 {[%clk 0:00:50]} 20. Bxd6 {[%clk 0:02:04]}  Bxd6 {[%clk 0:00:51]} 21. Qxd6 {[%clk 0:02:04]}  Qxd6 {[%clk 0:00:52]} 22. Rxd6 {[%clk 0:02:04]}  Nxe4 {[%clk 0:00:52]} 23. Rd5 {[%clk 0:02:03]}  f6 {[%clk 0:00:47]} 24. Nxe5 {[%clk 0:01:59]}  Be6 {[%clk 0:00:26]} 25. Rxb5 {[%clk 0:01:59]}  O-O {[%clk 0:00:20]} 26. Ng6 {[%clk 0:01:53]}  Re8 {[%clk 0:00:20]} 27. f3 {[%clk 0:01:48]}  Ng5 {[%clk 0:00:12]} 28. b3 {[%clk 0:01:47]}  Rd8 {[%clk 0:00:10]} 29. Nf4 {[%clk 0:01:44]}  Rd2 {[%clk 0:00:10]} 30. Rxg5+ {[%clk 0:01:40]}  fxg5 {[%clk 0:00:10]} 31. Nxe6 {[%clk 0:01:40]}  Rxa2 {[%clk 0:00:11]} 32. Nc4 {[%clk 0:01:39]}  Kf7 {[%clk 0:00:11]} 33. Nd4 {[%clk 0:01:38]}  Kf6 {[%clk 0:00:12]} 34. Kf1 {[%clk 0:01:36]}  h5 {[%clk 0:00:12]} 35. b4 {[%clk 0:01:33]}  h4 {[%clk 0:00:10]} 36. Ne2 {[%clk 0:01:02]}  Kf5 {[%clk 0:00:06]} 37. b5 {[%clk 0:00:59]}  g4 {[%clk 0:00:03]} 38. Ne3+ {[%clk 0:00:59]}  Kg5 {[%clk 0:00:03]} 39. Nxg4 {[%clk 0:00:59]}  Rb2 {[%clk 0:00:04]} 40. Kf2 {[%clk 0:00:54]}  Rxb5 {[%clk 0:00:04]} 41. Ne3 {[%clk 0:00:54]}  Rb2 {[%clk 0:00:04]} 42. Nc4 {[%clk 0:00:54]}  Rc2 {[%clk 0:00:04]} 43. Nd6 {[%clk 0:00:54]}  Rb2 {[%clk 0:00:04]} 44. Ne4+ {[%clk 0:00:52]}  Kf5 {[%clk 0:00:05]} 45. Nc3 {[%clk 0:00:52]}  Kg5 {[%clk 0:00:03]} 46. Kg1 {[%clk 0:00:53]}  Rc2 {[%clk 0:00:03]} 47. Ne4+ {[%clk 0:00:50]}  Kf5 {[%clk 0:00:03]} 48. Nd4+ {[%clk 0:00:50]}  Kf4 {[%clk 0:00:02]} 49. Nxc2 {[%clk 0:00:51]} 1-0


[Site "https://www.chess.com"]

[Event "Titled Tuesday Blitz April 4 Late 2023"]
[White "Timofeev, Artyom"]
[Black "Srinath, Rao S.V."]
[WhiteFideId "4140419"]
[BlackFideId "5028876"]
[WhiteElo "2586"]
[BlackElo "2196"]
[Result "1-0"]
[Round "06"]
[TimeControl "180+2"]
[Date "2023.04.04"]
[WhiteClock "0:00:40"]
[BlackClock "0:00:01"]

1. c4 {[%clk 0:03:00]}  Nf6 {[%clk 0:02:56]} 2. Nc3 {[%clk 0:03:00]}  g6 {[%clk 0:02:56]} 3. e4 {[%clk 0:02:57]}  d6 {[%clk 0:02:56]} 4. g3 {[%clk 0:02:57]}  Bg7 {[%clk 0:02:56]} 5. Bg2 {[%clk 0:02:57]}  O-O {[%clk 0:02:57]} 6. Nge2 {[%clk 0:02:57]}  c5 {[%clk 0:02:56]} 7. d4 {[%clk 0:02:55]}  cxd4 {[%clk 0:02:52]} 8. Nxd4 {[%clk 0:02:56]}  a6 {[%clk 0:02:47]} 9. O-O {[%clk 0:02:54]}  Qc7 {[%clk 0:02:47]} 10. b3 {[%clk 0:02:45]}  Nc6 {[%clk 0:02:44]} 11. Be3 {[%clk 0:02:36]}  Ng4 {[%clk 0:02:35]} 12. Nd5 {[%clk 0:02:36]}  Qd8 {[%clk 0:02:19]} 13. Qd2 {[%clk 0:02:03]}  Nxe3 {[%clk 0:02:14]} 14. fxe3 {[%clk 0:02:03]}  e6 {[%clk 0:02:02]} 15. Nc3 {[%clk 0:02:02]}  Bd7 {[%clk 0:01:34]} 16. Rad1 {[%clk 0:02:01]}  Qg5 {[%clk 0:01:34]} 17. Nce2 {[%clk 0:01:55]}  Rad8 {[%clk 0:01:27]} 18. h4 {[%clk 0:01:49]}  Qc5 {[%clk 0:01:19]} 19. Bh3 {[%clk 0:01:43]}  h5 {[%clk 0:01:02]} 20. Kh2 {[%clk 0:01:40]}  g5 {[%clk 0:00:56]} 21. hxg5 {[%clk 0:01:36]}  Qxg5 {[%clk 0:00:57]} 22. Nf3 {[%clk 0:01:34]}  Qh6 {[%clk 0:00:51]} 23. Nf4 {[%clk 0:01:30]}  e5 {[%clk 0:00:34]} 24. Nd5 {[%clk 0:01:24]}  Bg4 {[%clk 0:00:33]} 25. Rde1 {[%clk 0:01:12]}  f5 {[%clk 0:00:28]} 26. Nh4 {[%clk 0:01:09]}  fxe4 {[%clk 0:00:20]} 27. Qg2 {[%clk 0:01:08]}  Bxh3 {[%clk 0:00:13]} 28. Qxh3 {[%clk 0:01:06]}  Rxf1 {[%clk 0:00:12]} 29. Rxf1 {[%clk 0:01:06]}  Rf8 {[%clk 0:00:13]} 30. Rxf8+ {[%clk 0:01:01]}  Bxf8 {[%clk 0:00:14]} 31. Qf5 {[%clk 0:00:57]}  Ne7 {[%clk 0:00:10]} 32. Qxe4 {[%clk 0:00:55]}  Qg7 {[%clk 0:00:07]} 33. Nf5 {[%clk 0:00:52]}  Nxf5 {[%clk 0:00:06]} 34. Qxf5 {[%clk 0:00:52]}  Qf7 {[%clk 0:00:07]} 35. e4 {[%clk 0:00:50]}  Qxf5 {[%clk 0:00:06]} 36. exf5 {[%clk 0:00:50]}  Kf7 {[%clk 0:00:07]} 37. Kh3 {[%clk 0:00:50]}  e4 {[%clk 0:00:05]} 38. Kg2 {[%clk 0:00:44]}  Bh6 {[%clk 0:00:05]} 39. Kf1 {[%clk 0:00:44]}  b5 {[%clk 0:00:04]} 40. cxb5 {[%clk 0:00:43]}  axb5 {[%clk 0:00:05]} 41. a4 {[%clk 0:00:43]}  bxa4 {[%clk 0:00:05]} 42. bxa4 {[%clk 0:00:43]}  Bd2 {[%clk 0:00:05]} 43. Ke2 {[%clk 0:00:43]}  e3 {[%clk 0:00:02]} 44. Nxe3 {[%clk 0:00:42]}  Ba5 {[%clk 0:00:03]} 45. Nd5 {[%clk 0:00:42]}  Kf8 {[%clk 0:00:03]} 46. Kf3 {[%clk 0:00:40]}  Kf7 {[%clk 0:00:03]} 47. g4 {[%clk 0:00:40]}  h4 {[%clk 0:00:03]} 48. Kg2 {[%clk 0:00:40]}  Bd2 {[%clk 0:00:01]} 49. Kh3 {[%clk 0:00:40]} 1-0


[Site "https://www.chess.com"]

[Event "Titled Tuesday Blitz April 4 Late 2023"]
[White "EREBUNI91"]
[Black "Leitao, Rafael"]
[BlackFideId "2101246"]
[WhiteElo "2659"]
[BlackElo "2609"]
[Result "1/2-1/2"]
[Round "06"]
[TimeControl "180+2"]
[Date "2023.04.04"]
[WhiteClock "0:00:14"]
[BlackClock "0:00:17"]

1. e4 {[%clk 0:03:00]}  e5 {[%clk 0:02:58]} 2. Nf3 {[%clk 0:03:00]}  Nc6 {[%clk 0:02:58]} 3. Bb5 {[%clk 0:03:01]}  a6 {[%clk 0:02:58]} 4. Ba4 {[%clk 0:03:01]}  d6 {[%clk 0:02:58]} 5. d4 {[%clk 0:03:00]}  b5 {[%clk 0:02:52]} 6. Bb3 {[%clk 0:02:57]}  Nxd4 {[%clk 0:02:52]} 7. Nxd4 {[%clk 0:02:52]}  exd4 {[%clk 0:02:53]} 8. Bd5 {[%clk 0:02:40]}  Rb8 {[%clk 0:02:35]} 9. Bc6+ {[%clk 0:02:40]}  Bd7 {[%clk 0:02:35]} 10. Bxd7+ {[%clk 0:02:40]}  Qxd7 {[%clk 0:02:36]} 11. Qxd4 {[%clk 0:02:40]}  Nf6 {[%clk 0:02:35]} 12. O-O {[%clk 0:02:39]}  Be7 {[%clk 0:02:36]} 13. Nc3 {[%clk 0:02:37]}  O-O {[%clk 0:02:34]} 14. Bf4 {[%clk 0:02:37]}  Rfe8 {[%clk 0:02:26]} 15. Rfe1 {[%clk 0:02:37]}  Bf8 {[%clk 0:02:22]} 16. Rad1 {[%clk 0:02:34]}  Qe6 {[%clk 0:02:12]} 17. h3 {[%clk 0:02:14]}  b4 {[%clk 0:01:49]} 18. Nd5 {[%clk 0:02:13]}  Nxd5 {[%clk 0:01:49]} 19. Qxd5 {[%clk 0:02:14]}  Rb5 {[%clk 0:01:44]} 20. Qxe6 {[%clk 0:02:02]}  Rxe6 {[%clk 0:01:44]} 21. Kf1 {[%clk 0:01:55]}  g6 {[%clk 0:01:43]} 22. Rd5 {[%clk 0:01:24]}  Bg7 {[%clk 0:01:30]} 23. b3 {[%clk 0:00:55]}  Bc3 {[%clk 0:01:20]} 24. Re2 {[%clk 0:00:52]}  Kg7 {[%clk 0:01:10]} 25. f3 {[%clk 0:00:47]}  c6 {[%clk 0:00:44]} 26. Rxb5 {[%clk 0:00:31]}  axb5 {[%clk 0:00:43]} 27. Bd2 {[%clk 0:00:30]}  Re8 {[%clk 0:00:29]} 28. Bxc3+ {[%clk 0:00:25]}  bxc3 {[%clk 0:00:30]} 29. a3 {[%clk 0:00:26]}  Ra8 {[%clk 0:00:29]} 30. Re3 {[%clk 0:00:26]}  Rxa3 {[%clk 0:00:27]} 31. Rxc3 {[%clk 0:00:26]}  c5 {[%clk 0:00:27]} 32. Rd3 {[%clk 0:00:26]}  Ra2 {[%clk 0:00:27]} 33. Rd2 {[%clk 0:00:25]}  Kf8 {[%clk 0:00:25]} 34. Ke2 {[%clk 0:00:24]}  Ke7 {[%clk 0:00:26]} 35. Kd3 {[%clk 0:00:24]}  Ra1 {[%clk 0:00:26]} 36. Ke3 {[%clk 0:00:24]}  Ke6 {[%clk 0:00:26]} 37. Kf4 {[%clk 0:00:24]}  f6 {[%clk 0:00:26]} 38. h4 {[%clk 0:00:24]}  h6 {[%clk 0:00:25]} 39. Ke3 {[%clk 0:00:18]}  h5 {[%clk 0:00:24]} 40. Kf4 {[%clk 0:00:18]}  Rh1 {[%clk 0:00:22]} 41. g3 {[%clk 0:00:18]}  Ra1 {[%clk 0:00:22]} 42. Re2 {[%clk 0:00:18]}  Rd1 {[%clk 0:00:20]} 43. Ke3 {[%clk 0:00:18]}  Rg1 {[%clk 0:00:20]} 44. Kf4 {[%clk 0:00:18]}  Rd1 {[%clk 0:00:20]} 45. Rf2 {[%clk 0:00:17]}  b4 {[%clk 0:00:18]} 46. Re2 {[%clk 0:00:17]}  Rf1 {[%clk 0:00:16]} 47. Rd2 {[%clk 0:00:17]}  Rg1 {[%clk 0:00:16]} 48. Re2 {[%clk 0:00:15]}  Rf1 {[%clk 0:00:16]} 49. Rd2 {[%clk 0:00:14]}  Rg1 {[%clk 0:00:16]} 50. Re2 {[%clk 0:00:14]}  Rf1 {[%clk 0:00:17]} 1/2-1/2


[Site "https://www.chess.com"]

[Event "Titled Tuesday Blitz April 4 Late 2023"]
[White "Makridis, Dimitrios"]
[Black "Hirneise, Jens"]
[WhiteFideId "25864475"]
[BlackFideId "24614734"]
[WhiteElo "2277"]
[BlackElo "2345"]
[Result "0-1"]
[Round "06"]
[TimeControl "180+2"]
[Date "2023.04.04"]
[WhiteClock "0:01:02"]
[BlackClock "0:01:11"]

1. e4 {[%clk 0:02:53]}  d5 {[%clk 0:02:55]} 2. e5 {[%clk 0:02:52]}  c5 {[%clk 0:02:53]} 3. f4 {[%clk 0:02:51]}  Nc6 {[%clk 0:02:53]} 4. Nf3 {[%clk 0:02:51]}  Bg4 {[%clk 0:02:52]} 5. Be2 {[%clk 0:02:51]}  e6 {[%clk 0:02:48]} 6. c3 {[%clk 0:02:51]}  c4 {[%clk 0:02:40]} 7. O-O {[%clk 0:02:50]}  Bc5+ {[%clk 0:02:39]} 8. Kh1 {[%clk 0:02:35]}  Nge7 {[%clk 0:02:39]} 9. b3 {[%clk 0:02:33]}  b5 {[%clk 0:02:37]} 10. a4 {[%clk 0:02:34]}  a6 {[%clk 0:02:37]} 11. axb5 {[%clk 0:02:33]}  axb5 {[%clk 0:02:36]} 12. Rxa8 {[%clk 0:02:34]}  Qxa8 {[%clk 0:02:37]} 13. d4 {[%clk 0:02:34]}  cxd3 {[%clk 0:02:25]} 14. Qxd3 {[%clk 0:02:34]}  Bxf3 {[%clk 0:02:17]} 15. Bxf3 {[%clk 0:02:32]}  b4 {[%clk 0:02:18]} 16. Be3 {[%clk 0:02:21]}  Bxe3 {[%clk 0:02:15]} 17. Qxe3 {[%clk 0:02:22]}  bxc3 {[%clk 0:02:12]} 18. Nxc3 {[%clk 0:02:21]}  O-O {[%clk 0:02:07]} 19. Nb5 {[%clk 0:02:18]}  Rb8 {[%clk 0:01:58]} 20. Nd6 {[%clk 0:02:17]}  Qa3 {[%clk 0:01:52]} 21. f5 {[%clk 0:02:10]}  Qxb3 {[%clk 0:01:24]} 22. Qg5 {[%clk 0:01:38]}  Qd3 {[%clk 0:01:22]} 23. Rc1 {[%clk 0:01:07]}  Rb1 {[%clk 0:01:12]} 24. f6 {[%clk 0:01:03]}  Qf1+ {[%clk 0:01:10]} 25. Rxf1 {[%clk 0:01:02]}  Rxf1# {[%clk 0:01:11]} 0-1


[Site "https://www.chess.com"]

[Event "Titled Tuesday Blitz April 4 Late 2023"]
[White "Jimenez Jimenez, Leandro"]
[Black "Bluebaum, Matthias"]
[WhiteFideId "6415253"]
[BlackFideId "24651516"]
[WhiteElo "2263"]
[BlackElo "2638"]
[Result "0-1"]
[Round "06"]
[TimeControl "180+2"]
[Date "2023.04.04"]
[WhiteClock "0:00:59"]
[BlackClock "0:02:17"]

1. d4 {[%clk 0:03:00]}  d5 {[%clk 0:02:59]} 2. c4 {[%clk 0:03:00]}  e6 {[%clk 0:03:00]} 3. Nf3 {[%clk 0:03:00]}  Nf6 {[%clk 0:03:00]} 4. g3 {[%clk 0:03:01]}  Nc6 {[%clk 0:02:59]} 5. Bg2 {[%clk 0:03:01]}  Bd6 {[%clk 0:03:00]} 6. O-O {[%clk 0:03:01]}  O-O {[%clk 0:03:01]} 7. b3 {[%clk 0:03:00]}  dxc4 {[%clk 0:03:01]} 8. bxc4 {[%clk 0:03:00]}  e5 {[%clk 0:03:01]} 9. d5 {[%clk 0:02:59]}  Na5 {[%clk 0:03:01]} 10. Qc2 {[%clk 0:02:57]}  b6 {[%clk 0:02:51]} 11. Bb2 {[%clk 0:02:51]}  Re8 {[%clk 0:02:50]} 12. Nbd2 {[%clk 0:02:45]}  h6 {[%clk 0:02:47]} 13. Nb3 {[%clk 0:02:40]}  Nb7 {[%clk 0:02:45]} 14. a4 {[%clk 0:02:24]}  a5 {[%clk 0:02:44]} 15. h3 {[%clk 0:02:05]}  Bd7 {[%clk 0:02:43]} 16. Nh4 {[%clk 0:02:01]}  Nc5 {[%clk 0:02:41]} 17. Nxc5 {[%clk 0:01:58]}  Bxc5 {[%clk 0:02:42]} 18. Nf5 {[%clk 0:01:58]}  Qc8 {[%clk 0:02:41]} 19. e4 {[%clk 0:01:51]}  Bxf5 {[%clk 0:02:38]} 20. exf5 {[%clk 0:01:51]}  Qd7 {[%clk 0:02:39]} 21. Rfe1 {[%clk 0:01:50]}  Qd6 {[%clk 0:02:39]} 22. g4 {[%clk 0:01:47]}  Bd4 {[%clk 0:02:31]} 23. Bxd4 {[%clk 0:01:16]}  exd4 {[%clk 0:02:32]} 24. Qd3 {[%clk 0:01:16]}  Qc5 {[%clk 0:02:20]} 25. Red1 {[%clk 0:01:00]}  Rad8 {[%clk 0:02:17]} 26. Qxd4 {[%clk 0:01:00]}  Re1+ {[%clk 0:02:17]} 27. Kh2 {[%clk 0:00:59]}  Qxd4 {[%clk 0:02:17]} 0-1


[Site "https://www.chess.com"]

[Event "Titled Tuesday Blitz April 4 Late 2023"]
[White "Grigoriants, Sergey"]
[Black "Mortazavi, Ali"]
[WhiteFideId "4130804"]
[BlackFideId "401323"]
[WhiteElo "2502"]
[BlackElo "2339"]
[Result "1-0"]
[Round "06"]
[TimeControl "180+2"]
[Date "2023.04.04"]
[WhiteClock "0:00:36"]
[BlackClock "0:00:03"]

1. d4 {[%clk 0:02:55]}  Nf6 {[%clk 0:02:59]} 2. c4 {[%clk 0:02:55]}  g6 {[%clk 0:03:00]} 3. f3 {[%clk 0:02:55]}  Bg7 {[%clk 0:03:01]} 4. e4 {[%clk 0:02:55]}  O-O {[%clk 0:03:02]} 5. Ne2 {[%clk 0:02:54]}  d6 {[%clk 0:03:02]} 6. Be3 {[%clk 0:02:53]}  Nc6 {[%clk 0:03:02]} 7. Nbc3 {[%clk 0:02:44]}  a6 {[%clk 0:03:02]} 8. a3 {[%clk 0:02:42]}  e5 {[%clk 0:02:38]} 9. d5 {[%clk 0:02:41]}  Ne7 {[%clk 0:02:38]} 10. g4 {[%clk 0:02:16]}  c6 {[%clk 0:02:24]} 11. h4 {[%clk 0:02:12]}  b5 {[%clk 0:02:16]} 12. h5 {[%clk 0:02:04]}  bxc4 {[%clk 0:02:10]} 13. h6 {[%clk 0:01:46]}  Bh8 {[%clk 0:02:09]} 14. g5 {[%clk 0:01:45]}  Nh5 {[%clk 0:01:57]} 15. dxc6 {[%clk 0:01:36]}  Be6 {[%clk 0:01:56]} 16. Nd5 {[%clk 0:01:29]}  Nxc6 {[%clk 0:01:41]} 17. Rxh5 {[%clk 0:01:22]}  gxh5 {[%clk 0:01:39]} 18. Ng3 {[%clk 0:01:23]}  Nd4 {[%clk 0:01:14]} 19. Bxc4 {[%clk 0:01:22]}  Rc8 {[%clk 0:00:59]} 20. Rc1 {[%clk 0:01:21]}  Rxc4 {[%clk 0:00:43]} 21. Rxc4 {[%clk 0:01:20]}  Bxd5 {[%clk 0:00:44]} 22. exd5 {[%clk 0:01:19]}  Qa5+ {[%clk 0:00:42]} 23. Kf2 {[%clk 0:01:07]}  Qxd5 {[%clk 0:00:43]} 24. Nf5 {[%clk 0:01:05]}  Qe6 {[%clk 0:00:23]} 25. Bxd4 {[%clk 0:01:05]}  Qxf5 {[%clk 0:00:21]} 26. Be3 {[%clk 0:01:05]}  Rd8 {[%clk 0:00:17]} 27. Qd5 {[%clk 0:01:04]}  Qe6 {[%clk 0:00:16]} 28. Qxe6 {[%clk 0:01:00]}  fxe6 {[%clk 0:00:16]} 29. b4 {[%clk 0:01:01]}  Kf7 {[%clk 0:00:15]} 30. Rc6 {[%clk 0:01:00]}  Kg6 {[%clk 0:00:15]} 31. Rxa6 {[%clk 0:01:00]}  Kf5 {[%clk 0:00:13]} 32. Ra7 {[%clk 0:00:52]}  d5 {[%clk 0:00:14]} 33. Rxh7 {[%clk 0:00:52]}  d4 {[%clk 0:00:14]} 34. Bd2 {[%clk 0:00:51]}  e4 {[%clk 0:00:06]} 35. fxe4+ {[%clk 0:00:50]}  Kxe4 {[%clk 0:00:07]} 36. Rxh8 {[%clk 0:00:44]}  Rxh8 {[%clk 0:00:06]} 37. g6 {[%clk 0:00:45]}  Rf8+ {[%clk 0:00:03]} 38. Kg2 {[%clk 0:00:36]} 1-0


[Site "https://www.chess.com"]